fUST/lending_fUST_20251223
["ID","MTS","AMOUNT","RATE_DAILY","PERIOD"]
[399512888,1766422232503,-476.52,7.044e-05,2]
[399512889,1766422232562,-837.11375859,7.044e-05,2]
[399512890,1766422232574,-2600.0,7.044e-05,2]
[399512891,1766422232585,-577.60764926,7.044e-05,2]
[399512892,1766422232595,-207.39921632,7.115e-05,2]
[399512893,1766422232604,-500.0,7.287e-05,2]
[399512894,1766422232614,-500.0,7.287e-05,2]
[399512895,1766422232624,-500.0,7.287e-05,2]
[399512896,1766422232634,-464.99313442,7.287e-05,2]
[399512897,1766422232662,-74.16086359,7.287e-05,2]
[399512898,1766422232672,-500.0,7.287e-05,2]
[399512899,1766422232682,-500.0,7.287e-05,2]
[399512900,1766422232692,-500.0,7.287e-05,2]
[399512901,1766422232701,-500.0,7.287e-05,2]
[399512902,1766422232711,-300.0,7.287e-05,2]
[399512903,1766422232720,-300.0,7.287e-05,2]
[399512904,1766422232730,-50000.0,7.288e-05,2]
[399512905,1766422232740,-500.0,7.288e-05,2]
[399512906,1766422232750,-500.0,7.288e-05,2]
[399512907,1766422232760,-500.0,7.288e-05,2]
[399512908,1766422232769,-500.0,7.288e-05,2]
[399512909,1766422232779,-500.0,7.288e-05,2]
[399512910,1766422232789,-500.0,7.288e-05,2]
[399512911,1766422232799,-392.70864345,7.288e-05,2]
[399512912,1766422232809,-359.0,7.288e-05,2]
[399512913,1766422232820,-154.20799861,7.288e-05,2]
[399512914,1766422232830,-180.736,7.292e-05,2]
[399512915,1766422232839,-300.0,7.442e-05,2]
[399512916,1766422232849,-300.0,7.442e-05,2]
[399512917,1766422232859,-103.46064124,7.442e-05,2]
[399512935,1766422238006,-500.0,7.287e-05,2]
[399512936,1766422238016,-500.0,7.287e-05,2]
[399512937,1766422238026,-484.25650225,7.287e-05,2]
[399512938,1766422238035,-500.0,7.287e-05,2]
[399512939,1766422238046,-500.0,7.287e-05,2]
[399512940,1766422238055,-500.0,7.287e-05,2]
[399512941,1766422238065,-619.07267752,7.287e-05,2]
[399512942,1766422238074,-500.0,7.287e-05,2]
[399512943,1766422238084,-500.0,7.287e-05,2]
[399512944,1766422238151,-239.82914692,7.287e-05,2]
[399512945,1766422238161,-500.0,7.287e-05,2]
[399512946,1766422238170,-500.0,7.287e-05,2]
[399512947,1766422238180,-500.0,7.287e-05,2]
[399512948,1766422238189,-500.0,7.287e-05,2]
[399512949,1766422238198,-500.0,7.287e-05,2]
[399512950,1766422238208,-500.0,7.287e-05,2]
[399512951,1766422238218,-500.0,7.287e-05,2]
[399512952,1766422238228,-500.0,7.287e-05,2]
[399512953,1766422238238,-500.0,7.287e-05,2]
[399512954,1766422238250,-196.53935876,7.442e-05,2]
[399512955,1766422238260,-300.0,7.442e-05,2]
[399512956,1766422238269,-300.0,7.442e-05,2]
[399512957,1766422238279,-300.0,7.442e-05,2]
[399512958,1766422238288,-300.0,7.442e-05,2]
[399512959,1766422238299,-300.0,7.442e-05,2]
[399512960,1766422238308,-300.0,7.442e-05,2]
[399512961,1766422238318,-300.0,7.442e-05,2]
[399512962,1766422238328,-300.0,7.442e-05,2]
[399512963,1766422238337,-300.0,7.442e-05,2]
[399512964,1766422238347,-300.0,7.442e-05,2]
[399512965,1766422238356,-420.0,8.015e-05,2]
[399512966,1766422238365,-658.657,8.219e-05,2]
[399512967,1766422238374,-500.0,8.219e-05,2]
[399512968,1766422238383,-286.64815648,8.224e-05,2]
[399512969,1766422238393,-150.0,8.231e-05,2]
[399512970,1766422238403,-154.2079986,8.511e-05,2]
[399512971,1766422238412,-587.0,8.817e-05,2]
[399512972,1766422238422,-286.64815648,8.967e-05,2]
[399512973,1766422238431,-244.73107526,9.115e-05,2]
[399512974,1766422238441,-823.0,9.699e-05,2]
[399512975,1766422238450,-286.64815648,9.71e-05,2]
[399512976,1766422238460,-154.2079986,9.735e-05,2]
[399512977,1766422238470,-286.64815648,0.00010453,2]
[399512978,1766422238479,-1152.0,0.00010668,2]
[399512979,1766422238488,-698.31953267,0.00010721,2]
[399512980,1766422238497,-154.2079986,0.00010858,2]
[399512981,1766422238506,-520.25,0.00010958,2]
[399512982,1766422238516,-500.0,0.00010958,2]
[399512983,1766422238526,-500.0,0.00010958,2]
[399512984,1766422238536,-500.0,0.00010958,2]
[399512985,1766422238545,-1636.53,0.00010958,2]
[399512986,1766422238554,-500.0,0.00010958,2]
[399512987,1766422238564,-546.69,0.00010958,2]
[399512988,1766422238573,-500.0,0.00010958,2]
[399512989,1766422238582,-521.52,0.00010958,2]
[399512990,1766422238591,-500.0,0.00010958,2]
[399512991,1766422238600,-624.7,0.00010958,2]
[399512992,1766422238610,-505.23961475,0.00010958,2]
[399512993,1766422238619,-500.0,0.00010958,2]
[399512994,1766422238628,-500.0,0.00010958,2]
[399512995,1766422238638,-504.99238775,0.00010958,2]
[399512996,1766422238647,-500.0,0.00010958,2]
[399512997,1766422238657,-500.0,0.00010958,2]
[399512998,1766422238666,-500.0,0.00010958,2]
[399512999,1766422238675,-638.54,0.00010958,2]
[399513000,1766422238685,-500.0,0.00010958,2]
[399513001,1766422238695,-701.83,0.00010958,2]
[399513002,1766422238704,-2706.48,0.00010958,2]
[399513003,1766422238714,-500.83365578,0.00010958,2]
[399513004,1766422238723,-1414.01,0.00010958,2]
[399513005,1766422238732,-500.0,0.00010958,2]
[399513006,1766422238742,-608.21110222,0.00010958,2]
[399513007,1766422238751,-849.0,0.00010958,2]
[399513008,1766422238760,-500.0,0.00010958,2]
[399513009,1766422238769,-500.0,0.00010958,2]
[399513010,1766422238779,-500.0,0.00010958,2]
[399513011,1766422238788,-295.87630596,0.00010958,2]
[399513012,1766422238797,-500.0,0.00010958,2]
[399513013,1766422238807,-500.0,0.00010958,2]
[399513014,1766422238816,-604.44,0.00010958,2]
[399513015,1766422238826,-500.0,0.00010958,2]
[399513016,1766422238836,-500.72320192,0.00010958,2]
[399513017,1766422238845,-564.59,0.00010958,2]
[399513018,1766422238856,-500.0,0.00010958,2]
[399513019,1766422238865,-571.05,0.00010958,2]
[399513020,1766422238875,-500.0,0.00010958,2]
[399513021,1766422238885,-500.0,0.00010958,2]
[399513022,1766422238894,-1591.45,0.00010958,2]
[399513023,1766422238904,-500.0,0.00010958,2]
[399513024,1766422238915,-500.0,0.00010958,2]
[399513025,1766422238924,-501.12028123,0.00010958,2]
[399513026,1766422238934,-501.30347203,0.00010958,2]
[399513027,1766422238944,-1169.43,0.00010958,2]
[399513028,1766422238954,-1138.83,0.00010958,2]
[399513029,1766422238964,-500.0,0.00010958,2]
[399513030,1766422238974,-500.0,0.00010958,2]
[399513031,1766422238986,-503.45424078,0.00010958,2]
[399513032,1766422238997,-500.0,0.00010958,2]
[399513033,1766422239007,-253.98965149,0.00010958,2]
[399513034,1766422239017,-502.09974185,0.00010958,2]
[399513035,1766422239027,-500.0,0.00010958,2]
[399513036,1766422239038,-500.0,0.00010958,2]
[399513037,1766422239055,-1016.66,0.00010958,2]
[399513038,1766422239066,-500.0,0.00010958,2]
[399513039,1766422239077,-500.0,0.00010958,2]
[399513040,1766422239087,-500.0,0.00010958,2]
[399513041,1766422239096,-898.67,0.00010958,2]
[399513042,1766422239105,-500.0,0.00010958,2]
[399513043,1766422239115,-500.0,0.00010958,2]
[399513044,1766422239124,-500.0,0.00010958,2]
[399513045,1766422239134,-500.0,0.00010958,2]
[399513046,1766422239144,-1096.34,0.00010958,2]
[399513047,1766422239153,-502.59,0.00010958,2]
[399513048,1766422239163,-500.0,0.00010958,2]
[399513049,1766422239171,-500.0,0.00010958,2]
[399513050,1766422239181,-500.0,0.00010958,2]
[399513051,1766422239191,-500.0,0.00010958,2]
[399513052,1766422239200,-2501.83,0.00010958,2]
[399513053,1766422239210,-1469.58,0.00010958,2]
[399513054,1766422239219,-3350.06,0.00010958,2]
[399513055,1766422239229,-600.45,0.00010958,2]
[399513056,1766422239239,-590.03,0.00010958,2]
[399513057,1766422239254,-3072.03,0.00010958,2]
[399513058,1766422239263,-500.0,0.00010958,2]
[399513059,1766422239272,-500.0,0.00010958,2]
[399513060,1766422239282,-500.0,0.00010958,2]
[399513061,1766422239292,-1448.17,0.00010958,2]
[399513062,1766422239302,-500.0,0.00010958,2]
[399513063,1766422239311,-500.0,0.00010958,2]
[399513064,1766422239322,-500.0,0.00010958,2]
[399513065,1766422239331,-988.5,0.00010958,2]
[399513066,1766422239340,-3048.11,0.00010958,2]
[399513067,1766422239349,-500.0,0.00010958,2]
[399513068,1766422239358,-500.0,0.00010958,2]
[399513069,1766422239368,-500.0,0.00010958,2]
[399513070,1766422239377,-500.0,0.00010958,2]
[399513071,1766422239386,-536.0628195,0.00010958,2]
[399513072,1766422239394,-500.0,0.00010958,2]
[399513073,1766422239410,-500.0,0.00010958,2]
[399513074,1766422239421,-2262.88,0.00010958,2]
[399513075,1766422239430,-500.0,0.00010958,2]
[399513076,1766422239440,-500.0,0.00010958,2]
[399513077,1766422239452,-500.0,0.00010958,2]
[399513078,1766422239469,-500.0,0.00010958,2]
[399513079,1766422239483,-423.87431798,0.00010958,2]
[399513080,1766422239492,-680.75,0.00010958,2]
[399513081,1766422239501,-500.0,0.00010958,2]
[399513082,1766422239510,-981.32,0.00010958,2]
[399513083,1766422239520,-500.0,0.00010958,2]
[399513084,1766422239530,-2162.5,0.00010958,2]
[399513086,1766422239539,-500.0,0.00010958,2]
[399513087,1766422239548,-500.0,0.00010958,2]
[399513088,1766422239558,-1789.17,0.00010958,2]
[399513089,1766422239567,-500.0,0.00010958,2]
[399513090,1766422239576,-500.0,0.00010958,2]
[399513091,1766422239586,-487.60967271,0.00010958,2]
[399513093,1766422239595,-1087.85,0.00010958,2]
[399513095,1766422239604,-500.0,0.00010958,2]
[399513096,1766422239613,-500.0,0.00010958,2]
[399513097,1766422239622,-912.05,0.00010958,2]
[399513098,1766422239631,-500.0,0.00010958,2]
[399513099,1766422239640,-566.57,0.00010958,2]
[399513101,1766422239649,-500.0,0.00010958,2]
[399513103,1766422239658,-2086.13,0.00010958,2]
[399513104,1766422239667,-500.0,0.00010958,2]
[399513105,1766422239676,-500.0,0.00010958,2]
[399513106,1766422239685,-500.0,0.00010958,2]
[399513107,1766422239694,-500.0,0.00010958,2]
[399513108,1766422239703,-500.0,0.00010958,2]
[399513109,1766422239712,-621.94,0.00010958,2]
[399513110,1766422239721,-376.8530472,0.00010958,2]
[399513143,1766422240202,-1239.4369528,0.00010958,2]
[399513145,1766422240212,-500.0,0.00010958,2]
[399513148,1766422240221,-754.50532568,0.00010958,2]
[399513150,1766422240233,-465.80467432,0.00010958,2]
[399513152,1766422240243,-534.02,0.00010958,2]
[399513154,1766422240253,-669.18,0.00010958,2]
[399513155,1766422240262,-1115.91815246,0.00010958,2]
[399513230,1766422240981,-3e-08,0.00010958,2]
[399513233,1766422240992,-142.76184751,0.00010958,2]
[399513235,1766422241001,-486.08690257,0.00010958,2]
[399513236,1766422241011,-595.13,0.00010958,2]
[399513238,1766422241021,-500.0,0.00010958,2]
[399513240,1766422241030,-500.0,0.00010958,2]
[399513242,1766422241039,-500.0,0.00010958,2]
[399513244,1766422241048,-1181.86,0.00010958,2]
[399513246,1766422241058,-161.51889419,0.00010958,2]
[399513248,1766422241067,-500.0,0.00010958,2]
[399513250,1766422241076,-1365.17,0.00010958,2]
[399513252,1766422241085,-500.0,0.00010958,2]
[399513254,1766422241094,-500.0,0.00010958,2]
[399513256,1766422241103,-500.0,0.00010958,2]
[399513258,1766422241113,-1557.17152404,0.00010958,2]
[399513730,1766422246038,-1365.30847596,0.00010958,2]
[399513732,1766422246049,-507.33669805,0.00010958,2]
[399513734,1766422246059,-500.0,0.00010958,2]
[399513736,1766422246068,-500.0,0.00010958,2]
[399513738,1766422246078,-500.0,0.00010958,2]
[399513740,1766422246087,-500.0,0.00010958,2]
[399513742,1766422246097,-2762.48731958,0.00010958,2]
[399513747,1766422246133,-379.04637905,0.00010958,2]
[399513956,1766422954169,196.02398369,0.00014,30]
[399513960,1766423053191,5000.0,6.974e-05,2]
[399513961,1766423070768,-180.0,7.141e-05,2]
[399513962,1766423278723,5000.0,6.974e-05,2]
[399513992,1766423432531,-334.89400725,7.07e-05,2]
[399513993,1766423432550,-1165.00024623,7.07e-05,2]
[399514011,1766423438234,-3500.10574652,7.07e-05,2]
[399514013,1766423438244,-201.35661049,7.105e-05,2]
[399514014,1766423438254,-237.60080037,9.105e-05,2]
[399514015,1766423438264,-288.08139725,9.37e-05,2]
[399514016,1766423438273,-197.62693471,0.00010363,2]
[399514017,1766423438284,-355.13205844,0.0001055,2]
[399514018,1766423438294,-300.0,0.00010718,2]
[399514019,1766423438304,-500.0,0.00010718,2]
[399514020,1766423438316,-500.0,0.00010718,2]
[399514021,1766423438326,-500.0,0.00010718,2]
[399514022,1766423438336,-500.0,0.00010718,2]
[399514023,1766423438347,-500.0,0.00010718,2]
[399514024,1766423438357,-500.0,0.00010718,2]
[399514025,1766423438367,-500.0,0.00010718,2]
[399514026,1766423438377,-500.0,0.00010718,2]
[399514027,1766423438386,-276.49472935,0.00010718,2]
[399514028,1766423438396,-500.0,0.00010718,2]
[399514029,1766423438406,-157.97166386,0.00010718,2]
[399514030,1766423438416,-500.0,0.00010718,2]
[399514031,1766423438426,-559.485668,0.00010718,2]
[399514032,1766423438435,-488.25989531,0.00010718,2]
[399514033,1766423438445,-500.0,0.00010718,2]
[399514034,1766423438456,-500.0,0.00010718,2]
[399514035,1766423438465,-500.0,0.00010718,2]
[399514036,1766423438475,-500.0,0.00010718,2]
[399514037,1766423438485,-500.0,0.00010718,2]
[399514038,1766423438494,-244.83196778,0.00010718,2]
[399514039,1766423438504,-500.0,0.00010718,2]
[399514040,1766423438515,-500.0,0.00010718,2]
[399514041,1766423438524,-500.0,0.00010718,2]
[399514042,1766423438534,-3226.99778597,0.00010719,2]
[399514043,1766423438550,-15324.62528502,0.00010719,2]
[399514103,1766423440432,-624.75,0.00010719,2]
[399514687,1766423446326,-2833.72109279,0.00010719,2]
[399514689,1766423446338,-1783.72,0.00010719,2]
[399514692,1766423446381,-302.0,0.00010719,2]
[399514694,1766423446392,-1592.02885992,0.00010719,2]
[399514704,1766424118823,-300.0,0.000153,30]
[399514705,1766424181067,-660.84988202,0.00016125,20]
[399514706,1766424181113,-39.15011798,0.00016361,21]
[399514707,1766424184169,-621.69976404,0.00016361,21]
[399514708,1766424184220,-78.30023596,0.00016597,22]
[399514709,1766424253436,-582.54964606,0.00016597,22]
[399514710,1766424253463,-267.45035394,0.00016707,20]
[399514711,1766424265519,-520.23487953,0.00016707,20]
[399514712,1766424265563,-479.76512047,0.00016834,24]
[399514714,1766424346455,-787.68523347,0.00016426,16]
[399514715,1766424346510,-152.08292408,0.00016455,17]
[399514716,1766424346538,-60.23184245,0.00016455,17]
[399514717,1766424349304,-222.92511904,0.00016455,17]
[399514718,1766424349331,-380.29253016,0.00016477,17]
[399514719,1766424349358,-183.41396898,0.00016477,17]
[399514720,1766424349391,-213.36838182,0.00016598,16]
[399514721,1766424355390,-328.04366105,0.00016598,16]
[399514722,1766424355416,-171.95633895,0.00016644,17]
[399514723,1766424361215,-303.17370077,0.00016644,17]
[399514724,1766424361260,-181.08476155,0.00016834,24]
[399514725,1766424361288,-215.74153768,0.00016923,20]
[399514727,1766424428181,-380.29253016,0.00017065,25]
[399514728,1766424428210,-660.84988202,0.0001707,25]
[399514729,1766424451790,-210.0,0.00016923,20]
[399514735,1766424523268,2342.54299151,0.00014,30]
[399514790,1766424632936,-1231.3955753,7.29e-05,2]
[399514791,1766424632974,-3768.6044247,7.29e-05,2]
[399514792,1766424632984,-198.57746227,7.401e-05,2]
[399514793,1766424632998,-171.12700718,8.386e-05,2]
[399514794,1766424633009,-234.32140548,9.401e-05,2]
[399514795,1766424633019,-300.0,9.565e-05,2]
[399514796,1766424633029,-1200.0,9.565e-05,2]
[399514797,1766424633039,-500.0,9.565e-05,2]
[399514798,1766424633049,-500.0,9.565e-05,2]
[399514799,1766424633059,-500.0,9.565e-05,2]
[399514800,1766424633069,-11532.59652472,9.566e-05,2]
[399514801,1766424633082,-38467.40347528,9.566e-05,2]
[399514802,1766424633092,-1200.0,9.567e-05,2]
[399514803,1766424633102,-9054.5946301,9.575e-05,2]
[399514804,1766424633111,-506.392142,9.658e-05,2]
[399514805,1766424633121,-151.34444176,0.0001,2]
[399514806,1766424633131,-151.0,0.0001,2]
[399514807,1766424633140,-151.0,0.0001,2]
[399514808,1766424633150,-151.0,0.0001,2]
[399514809,1766424633160,-151.0,0.0001,2]
[399514810,1766424633170,-151.0,0.0001,2]
[399514811,1766424633180,-151.0,0.0001,2]
[399514812,1766424633190,-151.0,0.0001,2]
[399514813,1766424633199,-151.0,0.0001,2]
[399514814,1766424633210,-151.0,0.0001,2]
[399514815,1766424633219,-151.0,0.0001,2]
[399514816,1766424633228,-151.0,0.0001,2]
[399514817,1766424633239,-151.0,0.0001,2]
[399514818,1766424633249,-151.0,0.0001,2]
[399514819,1766424633258,-151.0,0.0001,2]
[399514820,1766424633268,-151.0,0.0001,2]
[399514821,1766424633277,-151.0,0.0001,2]
[399514822,1766424633286,-0.55869714,0.0001,2]
[399514851,1766424638245,-527.20355197,9.564e-05,2]
[399514853,1766424638255,-239.56478176,9.564e-05,2]
[399514855,1766424638265,-500.0,9.564e-05,2]
[399514857,1766424638276,-500.0,9.564e-05,2]
[399514859,1766424638286,-500.0,9.564e-05,2]
[399514860,1766424638295,-500.0,9.564e-05,2]
[399514862,1766424638305,-442.72327034,9.564e-05,2]
[399514864,1766424638315,-540.44151098,9.565e-05,2]
[399514866,1766424638324,-145.26682865,0.0001,2]
[399515077,1766424640674,-5.17447421,0.0001,2]
[399515080,1766424640683,-151.0,0.0001,2]
[399515083,1766424640693,-151.0,0.0001,2]
[399515085,1766424640706,-156.23124306,0.0001,2]
[399515087,1766424640716,-201.81707263,0.00010147,2]
[399515089,1766424640726,-4402.7741665,0.00010368,2]
[399515091,1766424640735,-207.18818235,0.000104,2]
[399515093,1766424640744,-644.17059028,0.00010425,2]
[399515095,1766424640754,-219.43,0.000105,2]
[399515097,1766424640763,-420.0,0.00010522,2]
[399515100,1766424640773,-500.0,0.00010522,2]
[399515102,1766424640782,-1041.66666667,0.00010668,2]
[399515104,1766424640792,-252.0,0.000107,2]
[399515105,1766424640803,-180.736,0.00010713,2]
[399515108,1766424640812,-2400.0,0.00010957,2]
[399515110,1766424640825,-3191.87072568,0.00010958,2]
[399515112,1766424640836,-466.66955784,0.00010958,2]
[399515114,1766424640846,-500.0,0.00010958,2]
[399515116,1766424640855,-500.0,0.00010958,2]
[399515118,1766424640865,-170.536017,0.00010958,2]
[399515120,1766424640876,-501.28208573,0.00010958,2]
[399515122,1766424640886,-500.0,0.00010958,2]
[399515124,1766424640895,-1805.368728,0.00010958,2]
[399515126,1766424640905,-500.0,0.00010958,2]
[399515128,1766424640914,-500.0,0.00010958,2]
[399515130,1766424640925,-500.0,0.00010958,2]
[399515133,1766424640935,-500.0,0.00010958,2]
[399515135,1766424640947,-500.0,0.00010958,2]
[399515136,1766424640957,-500.0,0.00010958,2]
[399515137,1766424640966,-500.0,0.00010958,2]
[399515138,1766424640976,-473.38244006,0.00010958,2]
[399515139,1766424641034,-26.61755994,0.00010958,2]
[399515140,1766424641043,-432.33324006,0.00010958,2]
[399515321,1766424643402,-1940.55086211,0.00010958,2]
[399515334,1766424643508,-1169.51589783,0.00010958,2]
[399515336,1766424643518,-334.83430217,0.00010958,2]
[399515342,1766424643564,-445.28569783,0.00010958,2]
[399515344,1766424643573,-500.0,0.00010958,2]
[399515346,1766424643583,-1494.0427975,0.00010958,2]
[399515588,1766424646671,-384.5172025,0.00010958,2]
[399515589,1766424646683,-500.0,0.00010958,2]
[399515591,1766424646692,-500.0,0.00010958,2]
[399515593,1766424646702,-500.0,0.00010958,2]
[399515594,1766424646711,-500.0,0.00010958,2]
[399515596,1766424646723,-500.0,0.00010958,2]
[399515598,1766424646739,-726.48,0.00010958,2]
[399515600,1766424646749,-500.0,0.00010958,2]
[399515602,1766424646758,-554.40871276,0.00010958,2]
[399515603,1766424646767,-267.18008474,0.00010958,2]
[399515607,1766424646805,-261.55859154,0.00010958,2]
[399515609,1766424646815,-2004.36395706,0.00010958,2]
[399515611,1766424646827,-736.52604294,0.00010958,2]
[399515613,1766424646837,-500.0,0.00010958,2]
[399515615,1766424646846,-500.0,0.00010958,2]
[399515617,1766424646856,-501.40474769,0.00010958,2]
[399515619,1766424646867,-500.0,0.00010958,2]
[399515620,1766424646879,-1007.98198833,0.00010958,2]
[399515763,1766424829001,45485.92913483,0.00014,30]
[399515764,1766424829025,128204.24563134,0.00014,30]
[399515773,1766425432663,300.0,0.000145,30]
[399515791,1766425832983,-250.50699874,8.457e-05,2]
[399515808,1766425838467,-772.04249589,8.457e-05,2]
[399515810,1766425838479,-1023.73570649,8.457e-05,2]
[399515812,1766425838490,-526.80861021,8.457e-05,2]
[399515814,1766425838501,-2420.1853518,8.457e-05,2]
[399515816,1766425838514,-6.72083687,8.457e-05,2]
[399515818,1766425838524,-192.91948491,8.55e-05,2]
[399515820,1766425838534,-156.17435481,8.557e-05,2]
[399515821,1766425838545,-343.82564519,8.557e-05,2]
[399515823,1766425838555,-500.0,8.557e-05,2]
[399515825,1766425838564,-50.78638657,8.557e-05,2]
[399515826,1766425838575,-449.21361343,8.557e-05,2]
[399515828,1766425838584,-500.0,8.557e-05,2]
[399515830,1766425838593,-192.49549601,8.557e-05,2]
[399515831,1766425838603,-500.0,8.557e-05,2]
[399515833,1766425838612,-500.0,8.557e-05,2]
[399515835,1766425838621,-500.0,8.557e-05,2]
[399515837,1766425838631,-500.0,8.557e-05,2]
[399515838,1766425838641,-498.37702519,8.557e-05,2]
[399515841,1766425838665,-1.62297481,8.557e-05,2]
[399515843,1766425838676,-219.8052863,8.557e-05,2]
[399515845,1766425838686,-500.0,8.557e-05,2]
[399515846,1766425838696,-468.83991903,8.557e-05,2]
[399515848,1766425838706,-500.0,8.557e-05,2]
[399515850,1766425838716,-500.0,8.557e-05,2]
[399515852,1766425838725,-500.0,8.557e-05,2]
[399515853,1766425838735,-500.0,8.557e-05,2]
[399515855,1766425838746,-500.0,8.557e-05,2]
[399515857,1766425838755,-500.0,8.557e-05,2]
[399515858,1766425838765,-500.0,8.557e-05,2]
[399515860,1766425838775,-500.0,8.557e-05,2]
[399515862,1766425838785,-500.0,8.557e-05,2]
[399515863,1766425838795,-500.0,8.557e-05,2]
[399515865,1766425838804,-500.0,8.557e-05,2]
[399515867,1766425838813,-602.78338912,8.557e-05,2]
[399515869,1766425838823,-500.0,8.557e-05,2]
[399515871,1766425838833,-500.0,8.557e-05,2]
[399515873,1766425838842,-500.0,8.557e-05,2]
[399515875,1766425838852,-300.0,8.557e-05,2]
[399515877,1766425838861,-9725.7949616,8.558e-05,2]
[399516517,1766425846616,-5883.98193169,8.558e-05,2]
[399516667,1766425894207,200.0,0.0001,10]
[399516685,1766427032511,-1125.97591378,7.043e-05,2]
[399516686,1766427032522,-427.395,7.043e-05,2]
[399516688,1766427032534,-280.32,7.043e-05,2]
[399516690,1766427032566,-1399.60017903,7.043e-05,2]
[399516692,1766427032577,-520.0,7.043e-05,2]
[399516694,1766427032587,-1200.0,7.113e-05,2]
[399516695,1766427032598,-2100.71544833,7.114e-05,2]
[399516696,1766427032610,-2899.28455167,7.114e-05,2]
[399516697,1766427032620,-189.06109522,7.15e-05,2]
[399516699,1766427032630,-300.0,7.184e-05,2]
[399516701,1766427032639,-300.0,7.184e-05,2]
[399516702,1766427032648,-500.0,7.185e-05,2]
[399516704,1766427032657,-610.52943696,7.185e-05,2]
[399516705,1766427032667,-500.0,7.185e-05,2]
[399516707,1766427032676,-500.0,7.185e-05,2]
[399516708,1766427032685,-500.0,7.185e-05,2]
[399516710,1766427032695,-500.0,7.185e-05,2]
[399516712,1766427032704,-500.0,7.185e-05,2]
[399516713,1766427032714,-500.0,7.185e-05,2]
[399516715,1766427032723,-500.0,7.185e-05,2]
[399516716,1766427032733,-500.0,7.185e-05,2]
[399516718,1766427032742,-500.0,7.185e-05,2]
[399516719,1766427032751,-500.0,7.185e-05,2]
[399516721,1766427032762,-500.0,7.185e-05,2]
[399516723,1766427032771,-438.02598056,7.185e-05,2]
[399516724,1766427032781,-533.13665328,7.185e-05,2]
[399516726,1766427032790,-500.0,7.185e-05,2]
[399516728,1766427032799,-524.59373302,7.185e-05,2]
[399516729,1766427032808,-7114.88138142,7.258e-05,2]
[399516730,1766427032819,-2177.89216173,7.258e-05,2]
[399516757,1766427038604,-500.0,7.257e-05,2]
[399516758,1766427038614,-38.5067473,7.257e-05,2]
[399516759,1766427038626,-461.4932527,7.257e-05,2]
[399516760,1766427038636,-428.30905768,7.257e-05,2]
[399516761,1766427038645,-2179.07337908,7.258e-05,2]
[399516762,1766427038710,-1274.43999481,7.258e-05,2]
[399516797,1766427040946,-8931.6,7.258e-05,2]
[399517395,1766427046931,-281.45962814,7.113e-05,2]
[399517396,1766427046941,-336.06597034,7.113e-05,2]
[399517397,1766427046950,-159.78066451,7.113e-05,2]
[399517398,1766427046959,-8647.70355206,7.258e-05,2]
[399517399,1766427046984,-337.2,7.258e-05,2]
[399517554,1766427146497,10000.01,6.608e-05,2]
[399517555,1766427146519,10000.01,6.608e-05,2]
[399517556,1766427146540,10000.01,6.608e-05,2]
[399517557,1766427146560,10000.01,6.608e-05,2]
[399517558,1766427146584,2056.4956656,6.608e-05,2]
[399517559,1766427402728,5000.0,6.974e-05,2]
[399517560,1766427425347,1704.47427188,6.974e-05,2]
[399517561,1766427456597,3295.53572812,6.974e-05,2]
[399517562,1766427456621,1704.46427188,6.974e-05,2]
[399517563,1766427480695,5000.0,6.974e-05,2]
[399517564,1766427484488,27040.63587937,0.0001,10]
[399517565,1766427705493,5000.0,6.974e-05,2]
[399517566,1766427728331,5000.0,6.974e-05,2]
[399517567,1766427743982,0.01,6.974e-05,2]
[399517568,1766427744005,398.32717473,6.974e-05,2]